bitfinex/quotes_BTCUSD_20240828
["timestamp","ask_amount","ask_price","bid_price","bid_amount"]
[1724813592304,0.75416168,59476.0,59475.0,0.0008998]
[1724813592806,1.01613086,59476.0,59475.0,0.0008998]
[1724813593010,1.00213086,59476.0,59475.0,0.0008998]
[1724813593207,0.98813086,59476.0,59475.0,0.0008998]
[1724813593414,1.00213086,59476.0,59475.0,0.0008998]
[1724813594019,1.01613086,59476.0,59475.0,0.0008998]
[1724813594426,0.76816168,59476.0,59475.0,0.0008998]
[1724813595027,0.95864977,59476.0,59475.0,0.0008998]
[1724813595232,0.71068059,59476.0,59475.0,0.0008998]
[1724813597248,1.55068059,59476.0,59475.0,0.0008998]
[1724813598422,0.71068059,59476.0,59475.0,0.0008998]
[1724813600477,0.6995307,59476.0,59475.0,0.0008998]
[1724813600690,0.77241353,59476.0,59475.0,0.0008998]
[1724813601499,0.6995307,59476.0,59475.0,0.0008998]
[1724813601860,0.7670107,59476.0,59475.0,0.0008998]
[1724813602974,0.24908498,59476.0,59475.0,0.0008998]
[1724813603194,0.83081382,59473.0,59472.0,0.05314576]
[1724813603409,1.781827,59473.0,59472.0,0.05314576]
[1724813603636,1.361827,59473.0,59472.0,0.05314576]
[1724813603880,0.96820265,59473.0,59472.0,0.05314576]
[1724813604741,1.00520265,59473.0,59472.0,0.05314576]
[1724813605371,0.99120265,59473.0,59472.0,0.17234576]
[1724813605815,1.00520265,59473.0,59472.0,0.17234576]
[1724813606451,1.01920265,59473.0,59472.0,0.17234576]
[1724813606666,1.12156542,59473.0,59472.0,0.17234576]
[1724813612257,1.01920265,59473.0,59472.0,0.17234576]
[1724813612900,1.01920265,59473.0,59472.0,0.17324556]
[1724813614363,1.13679831,59473.0,59472.0,0.17324556]
[1724813614829,1.13679831,59473.0,59472.0,0.1200998]
[1724813615648,1.13679831,59473.0,59472.0,0.0008998]
[1724813615863,1.26930908,59473.0,59472.0,0.0008998]
[1724813616495,1.43928295,59473.0,59472.0,0.0008998]
[1724813616688,1.26930908,59473.0,59472.0,0.0008998]
[1724813617323,1.43928295,59473.0,59472.0,0.0008998]
[1724813617525,1.43931345,59473.0,59472.0,0.0008998]
[1724813617857,1.26930908,59473.0,59472.0,0.0008998]
[1724813618284,1.43933449,59473.0,59472.0,0.0008998]
[1724813619698,1.26930908,59473.0,59472.0,0.0008998]
[1724813620175,1.43937227,59473.0,59472.0,0.0008998]
[1724813620384,1.26930908,59473.0,59472.0,0.0008998]
[1724813625621,1.27012708,59473.0,59472.0,0.0008998]
[1724813626933,1.36912708,59473.0,59472.0,0.0008998]
[1724813627724,1.61759535,59473.0,59472.0,0.0008998]
[1724813628638,1.36912708,59473.0,59472.0,0.0008998]
[1724813628814,1.61759535,59473.0,59472.0,0.0008998]
[1724813629018,1.36912708,59473.0,59472.0,0.0008998]
[1724813629760,1.3689247,59473.0,59472.0,0.0008998]
[1724813630536,1.2699247,59473.0,59472.0,0.0008998]
[1724813630961,1.13741393,59473.0,59472.0,0.0008998]
[1724813633445,1.38606895,59473.0,59472.0,0.0008998]
[1724813633820,1.13741393,59473.0,59472.0,0.0008998]
[1724813634183,1.38606895,59473.0,59472.0,0.0008998]
[1724813634725,1.13741393,59473.0,59472.0,0.0008998]
[1724813635317,1.38606895,59473.0,59472.0,0.0008998]
[1724813635519,1.38606895,59473.0,59472.0,0.1251998]
[1724813635520,1.13741393,59473.0,59472.0,0.1251998]
[1724813639778,1.38606786,59473.0,59472.0,0.1251998]
[1724813640449,1.52651716,59473.0,59472.0,0.1251998]
[1724813640792,1.52656247,59473.0,59472.0,0.1251998]
[1724813641824,1.26851751,59473.0,59472.0,0.1251998]
[1724813642041,1.01981827,59473.0,59472.0,0.2254998]
[1724813642366,0.99681827,59473.0,59472.0,0.2254998]
[1724813642568,0.97044262,59473.0,59472.0,0.2254998]
[1724813642795,0.99681807,59473.0,59472.0,0.2254998]
[1724813643401,0.97044262,59473.0,59472.0,0.2254998]
[1724813643776,0.99344262,59473.0,59472.0,0.2254998]
[1724813644867,1.01981808,59473.0,59472.0,0.2254998]
[1724813645895,1.16027453,59473.0,59472.0,0.2254998]
[1724813647680,1.01981808,59473.0,59472.0,0.2254998]
[1724813652365,0.99681808,59473.0,59472.0,0.2254998]
[1724813653185,0.98281808,59473.0,59472.0,0.2254998]
[1724813653733,0.16020664,59473.0,59472.0,0.2254998]
[1724813653930,0.04620664,59473.0,59472.0,0.2254998]
[1724813654729,0.03820664,59473.0,59472.0,0.2254998]
[1724813654934,0.04120664,59473.0,59472.0,0.2254998]
[1724813655133,0.03820664,59473.0,59472.0,0.2254998]
[1724813655332,0.04520664,59473.0,59472.0,0.2254998]
[1724813656130,0.03820664,59473.0,59472.0,0.2254998]
[1724813656325,0.03820664,59473.0,59472.0,0.2274998]
[1724813656767,0.03820664,59473.0,59472.0,0.2254998]
[1724813657333,0.03920664,59473.0,59472.0,0.2254998]
[1724813657547,0.03820664,59473.0,59472.0,0.2254998]
[1724813657944,0.04020664,59473.0,59472.0,0.2254998]
[1724813658785,0.04120664,59473.0,59472.0,0.2254998]
[1724813662831,0.01483118,59473.0,59472.0,0.2254998]
[1724813663051,0.04120358,59473.0,59472.0,0.2254998]
[1724813663720,0.03820358,59473.0,59472.0,0.2254998]
[1724813664173,0.04020358,59473.0,59472.0,0.2254998]
[1724813664377,0.03820358,59473.0,59472.0,0.2254998]
[1724813664618,0.03820358,59473.0,59472.0,0.2264998]
[1724813664832,0.03920358,59473.0,59472.0,0.2264998]
[1724813665053,0.03920358,59473.0,59472.0,0.2254998]
[1724813665260,0.03920358,59473.0,59472.0,0.2264998]
[1724813665504,0.03820358,59473.0,59472.0,0.2264998]
[1724813665735,0.03820358,59473.0,59472.0,0.2284998]
[1724813671518,0.03820358,59473.0,59472.0,0.2274998]
[1724813671740,0.03820358,59473.0,59472.0,0.2254998]
[1724813675706,0.03820358,59473.0,59472.0,0.25980935]
[1724813676071,0.03820358,59473.0,59472.0,0.2254998]
[1724813680245,0.0271904,59473.0,59472.0,0.2254998]
[1724813682365,0.0271904,59473.0,59472.0,0.2274998]
[1724813682792,0.0271904,59473.0,59472.0,0.2284998]
[1724813683993,0.0271904,59473.0,59472.0,0.2254998]
[1724813684196,0.0281904,59473.0,59472.0,0.2284998]
[1724813685132,0.03780935,59473.0,59472.0,0.2284998]
[1724813685542,0.0271904,59473.0,59472.0,0.2254998]
[1724813685958,0.0271904,59473.0,59472.0,0.2284998]
[1724813687273,0.0271904,59473.0,59472.0,0.2264998]
[1724813687486,0.0271904,59473.0,59472.0,0.2284998]
[1724813687915,0.000818,59473.0,59472.0,0.2284998]
[1724813690076,0.000818,59473.0,59472.0,0.2264998]
[1724813690493,0.000818,59473.0,59472.0,0.2284998]
[1724813690705,0.000818,59473.0,59472.0,0.2274998]
[1724813690949,0.000818,59473.0,59472.0,0.2254998]
[1724813691242,0.001818,59473.0,59472.0,0.2304998]
[1724813691467,0.002818,59473.0,59472.0,0.2334998]
[1724813691695,0.001818,59473.0,59472.0,0.2284998]
[1724813691880,0.000818,59473.0,59472.0,0.2254998]
[1724813692079,0.000818,59473.0,59472.0,0.2274998]
[1724813693803,0.000818,59473.0,59472.0,0.2254998]
[1724813694125,0.000818,59473.0,59472.0,0.2264998]
[1724813695505,0.000818,59473.0,59472.0,0.26090935]
[1724813695724,0.000818,59473.0,59472.0,0.22986226]
[1724813697503,0.000818,59473.0,59472.0,0.22886226]
[1724813697755,0.001818,59473.0,59472.0,0.23186226]
[1724813697957,0.002818,59473.0,59472.0,0.23686226]
[1724813701163,0.002818,59473.0,59472.0,0.2334998]
[1724813701708,0.02918915,59473.0,59472.0,0.2334998]
[1724813701910,0.03885169,59473.0,59472.0,0.2334998]
[1724813703646,0.03785169,59473.0,59472.0,0.2284998]
[1724813704458,0.03785169,59473.0,59472.0,0.2304998]
[1724813704668,0.03685169,59473.0,59472.0,0.2254998]
[1724813704896,0.03685169,59473.0,59472.0,0.2284998]
[1724813705094,0.03685169,59473.0,59472.0,0.2304998]
[1724813705402,0.03685169,59473.0,59472.0,0.0058998]
[1724813705403,0.16425169,59473.0,59472.0,0.0058998]
[1724813705623,0.26025169,59473.0,59472.0,0.0058998]
[1724813706540,0.03685169,59473.0,59472.0,0.12349546]
[1724813706696,0.03685169,59473.0,59472.0,0.23649546]
[1724813707102,0.03685169,59473.0,59472.0,0.32799546]
[1724813707500,0.03685169,59473.0,59472.0,0.32999546]
[1724813707722,0.02718915,59473.0,59472.0,0.32999546]
[1724813708523,0.03681905,59473.0,59472.0,0.32999546]
[1724813709274,0.02718915,59473.0,59472.0,0.32999546]
[1724813714286,0.02718915,59473.0,59472.0,0.32899546]
[1724813714531,0.02818915,59473.0,59472.0,0.33099546]
[1724813714720,0.02818915,59473.0,59472.0,0.33199546]
[1724813715939,0.02818915,59473.0,59472.0,0.33099546]
[1724813716363,0.02918915,59473.0,59472.0,0.33699546]
[1724813719361,0.02918915,59473.0,59472.0,0.37619501]
[1724813719754,0.002818,59473.0,59472.0,0.37619501]
[1724813720455,0.000818,59473.0,59472.0,0.36719501]
[1724813720630,0.001818,59473.0,59472.0,0.37319501]
[1724813720827,0.002818,59473.0,59472.0,0.37619501]
[1724813720997,0.002818,59473.0,59472.0,0.37319501]
[1724813721207,0.000818,59473.0,59472.0,0.36719501]
[1724813721415,0.002818,59473.0,59472.0,0.38762536]
[1724813721878,0.02918671,59473.0,59472.0,0.38762536]
[1724813722074,0.02918671,59473.0,59472.0,0.35342581]
[1724813727539,0.002818,59473.0,59472.0,0.35342581]
[1724813727699,0.000818,59476.0,59472.0,0.35342581]
[1724813727700,0.000818,59476.0,59475.0,0.005]
[1724813727900,0.000818,59485.0,59475.0,0.34435715]
[1724813728100,0.000818,59485.0,59484.0,0.34099566]
[1724813728892,0.000818,59485.0,59484.0,0.37474566]
[1724813729949,0.000818,59485.0,59484.0,0.38874566]
[1724813730377,0.000818,59485.0,59484.0,0.37474566]
[1724813730755,0.000818,59485.0,59484.0,0.38874566]
[1724813730962,0.000818,59485.0,59484.0,0.42762023]
[1724813731380,0.000818,59485.0,59484.0,0.44162023]
[1724813731816,0.02718059,59485.0,59484.0,0.44162023]
[1724813732204,0.02718059,59485.0,59484.0,0.45308414]
[1724813734377,0.02718059,59485.0,59484.0,0.38045957]
[1724813735021,0.02718059,59485.0,59484.0,0.36645957]
[1724813735230,0.02718059,59485.0,59484.0,0.35245957]
[1724813735442,0.02718059,59485.0,59484.0,0.38045957]
[1724813737847,0.000818,59485.0,59484.0,0.38045957]
[1724813738046,0.000818,59485.0,59484.0,0.41850553]
[1724813741182,0.02718195,59485.0,59484.0,0.41850553]
[1724813747769,0.000818,59485.0,59484.0,0.45225553]
[1724813748520,0.000818,59485.0,59484.0,0.43825553]
[1724813748746,0.000818,59485.0,59484.0,0.42425553]
[1724813749110,0.000818,59485.0,59484.0,0.43825553]
[1724813749504,0.000818,59485.0,59484.0,0.45225553]
[1724813750291,0.02636311,59498.0,59497.0,0.2147]
[1724813750479,0.02636311,59498.0,59497.0,0.35376566]
[1724813750702,0.28061144,59517.0,59504.0,0.005]
[1724813750835,0.49491144,59517.0,59504.0,0.33229566]
[1724813751035,0.49491144,59517.0,59504.0,0.36604566]
[1724813751253,0.02717306,59505.0,59504.0,0.36604566]
[1724813751498,0.02717306,59505.0,59504.0,0.40265023]
[1724813752145,0.02717306,59505.0,59504.0,0.40465023]
[1724813752342,0.02717306,59505.0,59504.0,0.28505457]
[1724813752592,0.02717306,59505.0,59504.0,0.43065023]
[1724813755690,0.02717306,59505.0,59504.0,0.44191946]
[1724813758305,0.02717306,59505.0,59504.0,0.3243238]
[1724813758510,0.02717306,59505.0,59504.0,0.44191946]
[1724813760371,0.02717306,59505.0,59504.0,0.42791946]
[1724813760570,0.02717306,59505.0,59504.0,0.25971923]
[1724813760855,0.03770417,59505.0,59504.0,0.37731489]
[1724813761057,0.03770417,59505.0,59504.0,0.39131489]
[1724813761230,0.02717306,59505.0,59504.0,0.39131489]
[1724813761619,0.02717306,59505.0,59504.0,0.40531489]
[1724813762199,0.02717306,59505.0,59504.0,0.39131489]
[1724813762557,0.02717306,59505.0,59504.0,0.40531489]
[1724813763120,0.02717306,59505.0,59504.0,0.44584638]
[1724813764812,0.02717306,59505.0,59504.0,0.43184638]
[1724813765656,0.02717306,59505.0,59504.0,0.40531489]
[1724813766515,0.03786537,59505.0,59504.0,0.40531489]
[1724813766722,0.03786537,59505.0,59504.0,0.39131489]
[1724813767063,0.03786537,59505.0,59504.0,0.40531489]
[1724813767465,0.03786537,59505.0,59504.0,0.39131489]
[1724813767666,0.02717306,59505.0,59504.0,0.39131489]
[1724813767870,0.02717306,59505.0,59504.0,0.40531489]
[1724813768126,0.02717306,59505.0,59504.0,0.37731489]
[1724813768504,0.02717306,59505.0,59504.0,0.40531489]
[1724813768667,0.02717306,59505.0,59504.0,0.39131489]
[1724813769086,0.24247306,59505.0,59504.0,0.07801923]
[1724813769289,0.25319051,59505.0,59504.0,0.19561489]
[1724813769720,0.25319051,59505.0,59504.0,0.17661489]
[1724813769915,0.24247306,59505.0,59504.0,0.17661489]
[1724813770180,0.25319051,59505.0,59504.0,0.19061489]
[1724813770389,0.25319051,59505.0,59504.0,0.17661489]
[1724813770589,0.25319051,59505.0,59504.0,0.16261489]
[1724813770799,0.25319051,59505.0,59504.0,0.17661489]
[1724813771026,0.25319051,59505.0,59504.0,0.15686489]
[1724813771206,0.24247306,59505.0,59504.0,0.028]
[1724813771650,0.25317302,59505.0,59504.0,0.028]
[1724813772949,0.25317302,59505.0,59504.0,0.014]
[1724813773214,0.25317302,59505.0,59504.0,0.03615957]
[1724813773470,0.25317302,59505.0,59504.0,0.023]
[1724813773683,0.03787302,59505.0,59504.0,0.009]
[1724813773911,0.02717306,59505.0,59504.0,0.135]
[1724813774123,0.03782699,59505.0,59504.0,0.135]
[1724813774344,0.03782699,59505.0,59504.0,0.143]
[1724813774576,0.03782699,59505.0,59504.0,0.148]
[1724813774807,0.03782699,59505.0,59504.0,0.022]
[1724813775478,0.03782699,59505.0,59504.0,0.072]
[1724813776365,0.03782699,59505.0,59504.0,0.08334601]
[1724813780294,0.03782699,59505.0,59504.0,0.072]
[1724813783448,0.25002699,59505.0,59504.0,0.067]
[1724813783708,0.23937306,59505.0,59504.0,0.067]
[1724813783938,0.24996893,59505.0,59504.0,0.067]
[1724813792341,0.03776893,59505.0,59504.0,0.067]
[1724813792581,0.03776893,59505.0,59504.0,0.08689428]
[1724813792821,0.02717306,59505.0,59504.0,0.33624428]
[1724813794539,0.02717306,59505.0,59504.0,0.31924428]
[1724813794764,0.02717306,59505.0,59504.0,0.34224428]
[1724813795177,0.02717306,59505.0,59504.0,0.32824428]
[1724813795422,0.02717306,59505.0,59504.0,0.34224428]
[1724813795640,0.000818,59519.0,59518.0,0.11759566]
[1724813795854,0.000818,59519.0,59518.0,0.15659008]
[1724813796094,0.01139046,59519.0,59518.0,0.15659008]
[1724813796326,0.000818,59519.0,59518.0,0.15659008]
[1724813796602,0.01146362,59519.0,59518.0,0.15659008]
[1724813796842,0.000818,59519.0,59518.0,0.15659008]
[1724813797078,0.01146362,59519.0,59518.0,0.15659008]
[1724813797309,0.000818,59519.0,59518.0,0.15659008]
[1724813797429,0.01146362,59519.0,59518.0,0.15659008]
[1724813797656,0.000818,59519.0,59518.0,0.16759008]
[1724813797865,0.01146362,59519.0,59518.0,0.14295551]
[1724813798091,0.000818,59519.0,59518.0,0.12095551]
[1724813798303,0.01146362,59519.0,59518.0,0.12095551]
[1724813798529,0.01146362,59519.0,59518.0,0.13995551]
[1724813798740,0.01146362,59519.0,59518.0,0.13095551]
[1724813798946,0.01146362,59519.0,59518.0,0.12095551]
[1724813799181,0.01146362,59519.0,59518.0,0.13195551]
[1724813799580,0.00846362,59519.0,59518.0,0.14295551]
[1724813799790,0.2127,59522.0,59518.0,0.14295551]
[1724813799999,0.2127,59522.0,59521.0,0.11759566]
[1724813801713,0.2127,59522.0,59521.0,0.12459566]
[1724813801922,0.2127,59522.0,59521.0,0.13259566]
[1724813803217,0.218,59529.0,59522.0,0.1206]
[1724813803440,0.218,59529.0,59526.0,0.11759566]
[1724813804393,0.04476495,59527.0,59526.0,0.11759566]
[1724813805545,0.04476495,59527.0,59526.0,0.11959566]
[1724813805755,0.04476495,59527.0,59526.0,0.12159566]
[1724813805977,0.04476495,59527.0,59526.0,0.11959566]
[1724813805978,0.03976495,59527.0,59526.0,0.11959566]
[1724813806211,0.02635015,59527.0,59526.0,0.11959566]
[1724813806662,0.02635015,59527.0,59518.0,0.1259]
[1724813806870,0.02635015,59527.0,59522.0,0.00335962]
[1724813806871,0.2151,59526.0,59522.0,0.00335962]
[1724813806990,0.2151,59526.0,59524.0,0.11759566]
[1724813807188,0.01028195,59525.0,59524.0,0.11759566]
[1724813808470,0.01028195,59525.0,59524.0,0.12059566]
[1724813808927,0.01028195,59525.0,59524.0,0.12359566]
[1724813809906,0.01028195,59525.0,59524.0,0.12059566]
[1724813810451,0.01028195,59525.0,59524.0,0.11759566]
[1724813810681,0.01028195,59525.0,59524.0,0.11959566]
[1724813811253,0.01028195,59525.0,59524.0,0.12159566]
[1724813813805,0.01028195,59525.0,59524.0,0.12249436]
[1724813814223,0.21508195,59525.0,59524.0,0.0048987]
[1724813824132,0.01028195,59525.0,59524.0,0.0048987]
[1724813825534,0.34077761,59525.0,59524.0,0.0048987]
[1724813827700,0.22318195,59525.0,59524.0,0.0048987]
[1724813832630,0.34077761,59525.0,59524.0,0.0048987]
[1724813834069,0.44077761,59525.0,59524.0,0.0048987]
[1724813834673,0.58264559,59525.0,59524.0,0.0048987]
[1724813834888,0.44077761,59525.0,59524.0,0.0048987]
[1724813837764,0.32318195,59525.0,59524.0,0.0048987]
[1724813837995,0.11028195,59525.0,59524.0,0.0048987]
[1724813838407,0.11028195,59525.0,59524.0,0.12249436]
[1724813838756,0.11028195,59525.0,59524.0,0.0048987]
[1724813840375,0.01028195,59525.0,59524.0,0.0048987]
[1724813840781,0.01028195,59525.0,59524.0,0.03816814]
[1724813840998,0.01028195,59525.0,59524.0,0.36832354]
[1724813841610,0.02716715,59527.0,59524.0,0.15912354]
[1724813841820,0.02716715,59527.0,59525.0,0.206]
[1724813841990,0.02716715,59527.0,59526.0,0.20935941]
[1724813845393,0.02716715,59527.0,59526.0,0.23135941]
[1724813846763,0.02716715,59527.0,59526.0,0.228]
[1724813849473,0.02716715,59527.0,59526.0,0.022]
[1724813849693,0.03781672,59527.0,59526.0,0.022]
[1724813851881,0.18021672,59527.0,59526.0,0.022]
[1724813852273,0.08781672,59527.0,59526.0,0.022]
[1724813852489,0.03781672,59527.0,59526.0,0.022]
[1724813852688,0.03781672,59527.0,59526.0,0.011]
[1724813852845,0.03781672,59527.0,59524.0,0.2154987]
[1724813853052,0.03781672,59527.0,59526.0,0.001]
[1724813853630,0.03781672,59527.0,59526.0,0.11859566]
[1724813853859,0.03781672,59527.0,59526.0,0.1510051]
[1724813854065,0.02716715,59527.0,59526.0,0.1510051]
[1724813854267,0.03772765,59527.0,59526.0,0.1510051]
[1724813855107,0.03772765,59527.0,59526.0,0.11759566]
[1724813855317,0.03772765,59527.0,59526.0,0.11859566]
[1724813855519,0.02716715,59527.0,59526.0,0.11859566]
[1724813855906,0.02716715,59527.0,59526.0,0.002]
[1724813856122,0.02716715,59527.0,59526.0,0.001]
[1724813857337,0.02716715,59527.0,59526.0,0.002]
[1724813858128,0.02716715,59527.0,59526.0,0.001]
[1724813858779,0.02716715,59527.0,59524.0,0.21885823]
[1724813859027,0.02716715,59527.0,59526.0,0.002]
[1724813859260,0.02716715,59527.0,59526.0,0.001]
[1724813859734,0.02716715,59527.0,59526.0,0.002]
[1724813859943,0.02716715,59527.0,59526.0,0.001]
[1724813860593,0.02716715,59527.0,59526.0,0.002]
[1724813862088,0.02716715,59527.0,59524.0,0.21885823]
[1724813862307,0.02716715,59527.0,59526.0,0.001]
[1724813862515,0.02716715,59527.0,59526.0,0.002]
[1724813862729,0.02716715,59527.0,59526.0,0.001]
[1724813862934,0.02716715,59527.0,59524.0,0.21885823]
[1724813863139,0.02716715,59527.0,59526.0,0.002]
[1724813863571,0.02716715,59527.0,59526.0,0.0028987]
[1724813864326,0.02698915,59527.0,59526.0,0.0028987]
[1724813865394,0.02698915,59527.0,59526.0,0.0048987]
[1724813865830,0.02698915,59527.0,59526.0,0.0028987]
[1724813866258,0.02698915,59527.0,59526.0,0.0038987]
[1724813866717,0.07698915,59527.0,59526.0,0.0028987]
[1724813867127,0.08755162,59527.0,59526.0,0.0048987]
[1724813872452,0.08755162,59527.0,59526.0,0.0028987]
[1724813872649,0.08755162,59527.0,59526.0,0.0008987]
[1724813873224,0.19691748,59527.0,59526.0,0.0008987]
[1724813874241,0.08755162,59527.0,59526.0,0.0008987]
[1724813887946,0.18755162,59527.0,59526.0,0.0008987]
[1724813892444,0.13755162,59527.0,59526.0,0.2171987]
[1724813893563,0.03755162,59527.0,59526.0,0.2171987]
[1724813898724,0.03755162,59527.0,59526.0,0.33479436]
[1724813900194,0.03755162,59527.0,59526.0,0.2171987]
[1724813902455,0.03755162,59527.0,59526.0,0.39871384]
[1724813902820,0.02698915,59527.0,59526.0,0.40975779]
[1724813904407,0.02698915,59527.0,59526.0,0.41175779]
[1724813904782,0.02698915,59527.0,59526.0,0.40975779]
[1724813905210,0.02698915,59527.0,59526.0,0.42375779]
[1724813905413,0.00818,59533.0,59526.0,0.42375779]
[1724813905414,0.00818,59533.0,59530.0,0.03375]
[1724813905573,0.00818,59533.0,59532.0,0.36614566]
[1724813906737,0.00818,59533.0,59532.0,0.38014566]
[1724813907097,0.00818,59533.0,59532.0,0.37114566]
[1724813907301,0.00818,59533.0,59532.0,0.25355]
[1724813907521,0.00818,59533.0,59532.0,0.38514566]
[1724813907925,0.00818,59533.0,59532.0,0.37114566]
[1724813908329,0.00818,59533.0,59532.0,0.39914566]
[1724813908730,0.00818,59533.0,59532.0,0.38514566]
[1724813908954,0.00818,59533.0,59532.0,0.39914566]
[1724813909157,0.00818,59533.0,59532.0,0.27655]
[1724813909358,0.00818,59533.0,59532.0,0.1515]
[1724813909359,0.03452482,59533.0,59532.0,0.1515]
[1724813909606,0.03452482,59533.0,59532.0,0.028]
[1724813910133,0.03452482,59533.0,59532.0,0.014]
[1724813910768,0.03452482,59533.0,59532.0,0.03112]
[1724813911129,0.03452482,59533.0,59532.0,0.009]
[1724813912698,0.03452482,59533.0,59532.0,0.018]
[1724813917030,0.24932482,59533.0,59532.0,0.018]
[1724813917241,0.74932482,59533.0,59532.0,0.018]
[1724813917439,0.7567346,59533.0,59532.0,0.018]
[1724813918120,0.7567346,59533.0,59532.0,0.009]
[1724813918321,0.5429346,59533.0,59532.0,0.009]
[1724813918887,0.0429346,59533.0,59532.0,0.2119]
[1724813919400,0.0439346,59533.0,59532.0,0.2119]
[1724813919580,0.0429346,59533.0,59532.0,0.2119]
[1724813919923,0.0439346,59533.0,59532.0,0.2119]
[1724813920155,0.0429346,59533.0,59532.0,0.2119]
[1724813920356,0.0449346,59533.0,59532.0,0.2119]
[1724813920799,0.0439346,59533.0,59532.0,0.2119]
[1724813921016,0.0419346,59533.0,59532.0,0.2119]
[1724813922000,0.0419346,59533.0,59532.0,0.2139]
[1724813922228,0.0429346,59533.0,59532.0,0.2139]
[1724813922412,0.0419346,59533.0,59532.0,0.2139]
[1724813922844,0.0419346,59533.0,59532.0,0.2149]
[1724813923044,0.0419346,59533.0,59532.0,0.2139]
[1724813923484,0.0919346,59533.0,59532.0,0.003]
[1724813923688,0.0919346,59533.0,59532.0,0.007]
[1724813924629,0.0919346,59533.0,59532.0,0.003]
[1724813925124,0.0919346,59533.0,59532.0,0.005]
[1724813925520,0.0919346,59533.0,59532.0,0.002]
[1724813926184,0.0919346,59533.0,59532.0,0.003]
[1724813926381,0.0919346,59533.0,59527.0,0.0008987]
[1724813926382,0.28061144,59531.0,59527.0,0.0008987]
[1724813926733,0.00749182,59530.0,59527.0,0.0008987]
[1724813928121,0.00749182,59530.0,59527.0,0.0048987]
[1724813928574,0.2172,59529.0,59527.0,0.0048987]
[1724813929300,0.00749182,59528.0,59527.0,0.0048987]
[1724813929434,0.00749182,59528.0,59527.0,0.0028987]
[1724813930060,0.50749182,59528.0,59527.0,0.0028987]
[1724813930467,0.50749182,59528.0,59527.0,0.0008987]
[1724813930692,0.50749182,59528.0,59527.0,0.0048987]
[1724813930905,0.00749182,59528.0,59527.0,0.0048987]
[1724813931091,0.00749182,59528.0,59527.0,0.1194987]
[1724813931316,0.1,59530.0,59527.0,0.1184987]
[1724813931524,0.28061144,59531.0,59527.0,0.1184987]
[1724813931684,0.28061144,59531.0,59527.0,0.1164987]
[1724813932025,0.00749182,59530.0,59527.0,0.1164987]
[1724813932977,0.001,59528.0,59527.0,0.1164987]
[1724813933188,0.002,59528.0,59527.0,0.1164987]
[1724813933418,0.00940561,59528.0,59527.0,0.1164987]
[1724813933634,0.001,59528.0,59527.0,0.1164987]
[1724813933840,0.00740561,59528.0,59527.0,0.1164987]
[1724813934054,0.28061144,59531.0,59527.0,0.0008987]
[1724813934252,0.00740561,59528.0,59527.0,0.0018987]
[1724813934439,0.28061144,59531.0,59527.0,0.0008987]
[1724813934727,0.00740561,59530.0,59527.0,0.0018987]
[1724813936287,0.00740561,59530.0,59527.0,0.0008987]
[1724813936533,0.00740561,59530.0,59527.0,0.0028987]
[1724813936890,0.00740561,59530.0,59527.0,0.0008987]
[1724813937255,0.00840561,59530.0,59527.0,0.0008987]
[1724813938251,0.12330561,59530.0,59527.0,0.0008987]
[1724813938453,0.05,59528.0,59527.0,0.0008987]
[1724813938973,0.05740561,59528.0,59527.0,0.0008987]
[1724813940355,0.05740561,59528.0,59527.0,0.0018987]
[1724813940986,0.05,59528.0,59527.0,0.0038987]
[1724813941435,0.05,59528.0,59527.0,0.0018987]
[1724813941647,0.05,59528.0,59527.0,0.0008987]
[1724813942813,0.051,59528.0,59527.0,0.0008987]
[1724813943008,0.052,59528.0,59527.0,0.0008987]
[1724813945754,0.051,59528.0,59527.0,0.0008987]
[1724813946295,0.052,59528.0,59527.0,0.0008987]
[1724813946590,0.051,59528.0,59527.0,0.0008987]
[1724813947030,0.050818,59528.0,59527.0,0.0008987]
[1724813947479,0.051818,59528.0,59527.0,0.0008987]
[1724813947677,0.050818,59528.0,59527.0,0.0008987]
[1724813948055,0.051818,59528.0,59527.0,0.0008987]
[1724813948437,0.074818,59528.0,59527.0,0.0008987]
[1724813948643,0.194018,59528.0,59527.0,0.0008987]
[1724813949492,0.289018,59528.0,59527.0,0.0008987]
[1724813949973,0.288018,59528.0,59527.0,0.0008987]
[1724813950514,0.289018,59528.0,59527.0,0.0008987]
[1724813950736,0.288018,59528.0,59527.0,0.0008987]
[1724813950956,0.388018,59528.0,59527.0,0.0008987]
[1724813951184,0.389018,59528.0,59527.0,0.0008987]
[1724813951573,0.390018,59528.0,59527.0,0.0008987]
[1724813952926,0.391018,59528.0,59527.0,0.0008987]
[1724813953826,0.390018,59528.0,59527.0,0.0008987]
[1724813954035,0.388018,59528.0,59527.0,0.0008987]
[1724813954255,0.392018,59528.0,59527.0,0.0028987]
[1724813954478,0.53998457,59528.0,59527.0,0.0018987]
[1724813954683,0.53998457,59528.0,59527.0,0.0008987]
[1724813954684,0.53798457,59528.0,59527.0,0.0008987]
[1724813954867,0.54098457,59528.0,59527.0,0.0018987]
[1724813955108,0.54098457,59528.0,59527.0,0.0008987]
[1724813955109,0.53898457,59528.0,59527.0,0.0008987]
[1724813955965,0.54198457,59528.0,59527.0,0.0018987]
[1724813956481,0.53898457,59528.0,59527.0,0.0008987]
[1724813956902,0.54298457,59528.0,59527.0,0.0028987]
[1724813957116,0.55298457,59528.0,59527.0,0.0028987]
[1724813957322,0.54598457,59528.0,59527.0,0.0008987]
[1724813957537,0.54598457,59528.0,59527.0,0.0028987]
[1724813957538,0.56398457,59528.0,59527.0,0.0028987]
[1724813958007,0.53998457,59528.0,59527.0,0.0018987]
[1724813958215,0.65742082,59528.0,59527.0,0.0018987]
[1724813958429,1.49642082,59528.0,59527.0,0.0018987]
[1724813958639,1.49642082,59528.0,59527.0,0.0028987]
[1724813958640,1.51042082,59528.0,59527.0,0.0028987]
[1724813959083,1.08692082,59528.0,59527.0,0.0018987]
[1724813959290,0.67842082,59528.0,59527.0,0.0018987]
[1724813960105,0.85459308,59528.0,59527.0,0.0018987]
[1724813965530,1.69359308,59528.0,59527.0,0.0018987]
[1724813966618,1.69652213,59528.0,59527.0,0.0018987]
[1724813968059,1.54855556,59528.0,59527.0,0.0018987]
[1724813968292,1.25494705,59528.0,59527.0,0.0018987]
[1724813968496,0.41594705,59528.0,59527.0,0.0018987]
[1724813972232,0.70955556,59528.0,59527.0,0.0018987]
[1724813973565,1.54855556,59528.0,59527.0,0.0018987]
[1724813973721,1.7171072,59528.0,59527.0,0.0018987]
[1724813979810,1.7238492,59528.0,59527.0,0.0018987]
[1724813981929,1.43024069,59528.0,59527.0,0.0018987]
[1724813982132,1.54766956,59528.0,59527.0,0.0018987]
[1724813982959,0.70866956,59528.0,59527.0,0.0018987]
[1724813984770,0.71984682,59528.0,59527.0,0.0018987]
[1724813988147,1.55884682,59528.0,59527.0,0.0018987]